[Event "BL 2018-19"]
[Site "Berlin"]
[Date "2019.04.08"]
[Round "15.1"]
[White "Mons, Leon"]
[Black "Volokitin, Andrei"]
[Result "1-0"]
[ECO "B51"]
[WhiteElo "2554"]
[BlackElo "2630"]
[Annotator "RC"]
[PlyCount "119"]
[EventDate "2018.11.10"]
[EventType "team-tourn"]
[EventCountry "GER"]
[SourceTitle "playchess.com"]
[Source "ChessBase"]
[SourceQuality "1"]
[WhiteTeam "Zugzwang Muenchen"]
[BlackTeam "SV Hofheim"]
[TimeControl "40/6000+30:3000+30"]

1. e4 {[%emt 0:00:00]} c5 {[%emt 0:00:00]} 2. Nf3 {[%emt 0:00:00]} d6 {[%emt 0:00:05]} 3. Bb5+ {[%emt 0:00:00]} Nd7 {[%emt 0:00:07]} 4. Ba4 {[%emt 0:00:04]} Ngf6 {[%emt 0:01:26]} 5. O-O {[%emt 0:00:13]} a6 {[%emt 0:24:21]} 6. c4 {[%emt 0:00:09]} e5 {[%emt 0:11:58]} 7. Nc3 {[%emt 0:01:11]} g6 {[%emt 0:14:46]} 8. d3 {[%emt 0:01:11]} Bg7 {[%emt 0:00:06]} 9. a3 {[%emt 0:06:40]} O-O {[%emt 0:03:43]} 10. Rb1 {[%emt 0:08:09]} Qc7 {[%emt 0:06:14]} 11. Bg5 {[%emt 0:09:24]} Nb6 {[%emt 0:01:24]} 12. Bc2 {[%emt 0:00:59]} h6 {[%emt 0:00:16]} 13. Bd2 {[%emt 0:01:57]} Be6 {[%emt 0:05:11]} 14. b4 {[%emt 0:02:08]} Nbd7 {[%emt 0:00:19]} 15. Qc1 {[%emt 0:06:17]} Kh7 {[%emt 0:00:21]} 16. Qb2 {[%emt 0:01:11]} Rab8 {[%emt 0:02:45]} 17. Rfc1 {[%emt 0:05:06]} b6 {[%emt 0:11:27]} 18. Qa2 {[%emt 0:17:34]} Nh5 {[%emt 0:01:04]} 19. Nd5 {[%emt 0:03:20]} Bxd5 {[%emt 0:05:12]} 20. cxd5 {[%emt 0:00:46]} Nf4 {[%emt 0:00:30]} 21. Kf1 {[%emt 0:00:30]} Qd8 {[%emt 0:00:30]} 22. bxc5 {[%emt 0:00:30]} dxc5 {[%emt 0:00:30]} 23. a4 {[%emt 0:16:35]} f5 {[%emt 0:11:58]} 24. exf5 {[%emt 0:04:58]} Rxf5 {[%emt 0:00:14]} 25. d4 {[%emt 0:03:03]} Rf8 {[%emt 0:00:01]} 26. dxc5 {[%emt 0:13:21]} Nxc5 {[%emt 0:00:14]} 27. Re1 {[%emt 0:01:42]} Qd7 {[%emt 0:06:32]} 28. Bxf4 {[%emt 0:02:06]} Rxf4 {[%emt 0:00:01]} 29. Nxe5 {[%emt 0:02:11]} Bxe5 {[%emt 0:00:23]} 30. Rxe5 {[%emt 0:00:04]} Qf7 {[%emt 0:01:27]} 31. Re2 {[%emt 0:01:21]} Rf8 {[%emt 0:00:04]} 32. f3 {[%emt 0:00:20]} Rxf3+ {[%emt 0:00:41]} 33. gxf3 {[%emt 0:00:08]} Qxf3+ {[%emt 0:00:15]} 34. Kg1 {[%emt 0:00:22]} Rf4 {[%emt 0:00:40]} 35. Rg2 {[%emt 0:01:35]} Rg4 {[%emt 0:00:01]} 36. Bxg6+ {[%emt 0:00:51]} Kxg6 {[%emt 0:00:07]} 37. Rxg4+ {[%emt 0:01:02]} Qxg4+ {[%emt 0:00:01]} 38. Qg2 {[%emt 0:00:09]} Qxg2+ {[%emt 0:00:04]} 39. Kxg2 {[%emt 0:00:05]} Nxa4 {[%emt 0:00:03]} 40. Rf1 {[%emt 0:01:26]} Nc5 {[%emt 0:00:55]} 41. Rf8 {[%emt 0:02:51]} Nd7 {[%emt 0:11:13]} 42. Rd8 {[%emt 0:06:53]} Nf6 {[%emt 0:00:10]} 43. Rd6 {[%emt 0:01:32]} Kg5 {[%emt 0:03:53]} 44. Rxb6 {[%emt 0:01:02]} Nxd5 {[%emt 0:00:08]} 45. Rxa6 {[%emt 0:00:04]} Nf4+ {[%emt 0:09:44]} 46. Kf3 {[%emt 0:03:05]} Nh5 {[%emt 0:00:06]} 47. Ra5+ {[%emt 0:02:03]} Kh4 {[%emt 0:04:53]} 48. Ra4+ {[%emt 0:00:21]} Kg5 {[%emt 0:00:25]} 49. h4+ {[%emt 0:00:30]} Kf5 {[%emt 0:04:09]} 50. Ra5+ {[%emt 0:00:08]} Kg6 {[%emt 0:00:01]} 51. Ra6+ {[%emt 0:00:17]} Kh7 {[%emt 0:01:50]} 52. Kg4 {[%emt 0:00:25]} Ng7 {[%emt 0:00:06]} 53. Rb6 {[%emt 0:01:49]} Ne8 {[%emt 0:00:11]} 54. Kf5 {[%emt 0:00:54]} Ng7+ {[%emt 0:00:09]} 55. Kf6 {[%emt 0:00:32]} Nh5+ {[%emt 0:00:07]} 56. Kf7 {[%emt 0:00:24]} Nf4 {[%emt 0:05:29]} 57. Rb7 {[%emt 0:01:25]} Ng2 {[%emt 0:07:03]} 58. Kf6+ {[%emt 0:00:10]} Kh8 {[%emt 0:00:02]} 59. Rb4 {[%emt 0:00:32]} Kh7 {[%emt 0:00:29]} 60. Re4 {[%emt 0:00:23]} 1-0

[Event "BL 2018-19"]
[Site "Berlin"]
[Date "2019.04.07"]
[Round "15.2"]
[White "Moranda, Wojciech"]
[Black "Huschenbeth, Niclas"]
[Result "1/2-1/2"]
[ECO "D37"]
[WhiteElo "2599"]
[BlackElo "2586"]
[Annotator "ChessBase"]
[PlyCount "90"]
[EventDate "2018.11.10"]
[EventType "team-tourn"]
[EventCountry "GER"]
[SourceTitle "playchess.com"]
[Source "ChessBase"]
[SourceQuality "1"]
[WhiteTeam "SF Berlin"]
[BlackTeam "Hamburg SK"]
[TimeControl "40/6000+30:3000+30"]

1. d4 {[%emt 0:00:00]} Nf6 {[%emt 0:00:00]} 2. c4 {[%emt 0:00:00]} e6 {[%emt 0:00:00]} 3. Nf3 {[%emt 0:00:13]} d5 {[%emt 0:00:00]} 4. Nc3 {[%emt 0:00:21]} dxc4 {[%emt 0:00:00]} 5. e4 {[%emt 0:00:26]} Bb4 {[%emt 0:00:04]} 6. Bxc4 {[%emt 0:00:15]} Nxe4 {[%emt 0:00:08]} 7. O-O {[%emt 0:00:14]} Nf6 {[%emt 0:00:04]} 8. Qa4+ {[%emt 0:00:41]} Nc6 {[%emt 0:00:04]} 9. Ne5 {[%emt 0:00:56]} Rb8 {[%emt 0:01:11]} 10. d5 {[%emt 0:04:15]} exd5 {[%emt 0:00:54]} 11. Nxd5 {[%emt 0:00:22]} Nxd5 {[%emt 0:00:36]} 12. Nxc6 {[%emt 0:00:13]} bxc6 {[%emt 0:01:00]} 13. Qxc6+ {[%emt 0:00:11]} Qd7 {[%emt 0:00:26]} 14. Bxd5 {[%emt 0:01:02]} O-O {[%emt 0:03:11]} 15. Qxd7 {[%emt 0:01:48]} Bxd7 {[%emt 0:00:04]} 16. Bf4 {[%emt 0:00:31]} Bd6 {[%emt 0:01:45]} 17. Bxd6 {[%emt 0:00:30]} cxd6 {[%emt 0:00:03]} 18. b3 {[%emt 0:00:41]} Be6 {[%emt 0:09:54]} 19. Rfd1 {[%emt 0:15:01]} Rfd8 {[%emt 0:00:50]} 20. Rac1 {[%emt 0:01:56]} Rbc8 {[%emt 0:05:29]} 21. Bb7 {[%emt 0:06:27]} Rxc1 {[%emt 0:02:08]} 22. Rxc1 {[%emt 0:00:19]} a5 {[%emt 0:13:40]} 23. Kf1 {[%emt 0:11:54]} Kf8 {[%emt 0:00:28]} 24. Ke2 {[%emt 0:05:52]} Ke7 {[%emt 0:01:37]} 25. Ke3 {[%emt 0:06:11]} Rb8 {[%emt 0:02:09]} 26. Be4 {[%emt 0:01:52]} d5 {[%emt 0:02:58]} 27. Bd3 {[%emt 0:04:58]} Kd6 {[%emt 0:00:25]} 28. g3 {[%emt 0:10:59]} Rb4 {[%emt 0:12:45]} 29. Kd2 {[%emt 0:08:20]} h6 {[%emt 0:21:37]} 30. Bc2 {[%emt 0:02:08]} g5 {[%emt 0:02:16]} 31. a3 {[%emt 0:07:33]} Rb8 {[%emt 0:00:25]} 32. Bd1 {[%emt 0:01:10]} g4 {[%emt 0:07:22]} 33. Ke3 {[%emt 0:05:43]} Re8 {[%emt 0:01:08]} 34. Kd2 {[%emt 0:02:37]} Bf5 {[%emt 0:09:50]} 35. Rc3 {[%emt 0:02:57]} h5 {[%emt 0:04:16]} 36. f3 {[%emt 0:02:06]} Bd7 {[%emt 0:03:51]} 37. Rd3 {[%emt 0:01:59]} f5 {[%emt 0:02:37]} 38. Rd4 {[%emt 0:02:22]} Kc5 {[%emt 0:00:59]} 39. Rf4 {[%emt 0:00:35]} d4 {[%emt 0:01:25]} 40. Bc2 {[%emt 0:01:46]} Rf8 {[%emt 0:01:39]} 41. Kd3 {[%emt 0:21:34]} Bb5+ {[%emt 0:00:35]} 42. Kd2 {[%emt 0:02:27]} Bd7 {[%emt 0:00:04]} 43. Kd3 {[%emt 0:00:28]} Bb5+ {[%emt 0:10:58]} 44. Kd2 {[%emt 0:00:16]} Bd7 {[%emt 0:04:49]} 45. Kd3 {[%emt 0:00:28]} Bb5+ {[%emt 0:02:21] Ke4} 1/2-1/2

[Event "BL 2018-19"]
[Site "Berlin"]
[Date "2019.04.08"]
[Round "15.2"]
[White "Schroeder, Jan-Christian"]
[Black "Kindermann, Stefan"]
[Result "1-0"]
[ECO "C03"]
[WhiteElo "2571"]
[BlackElo "2500"]
[Annotator "RC"]
[PlyCount "77"]
[EventDate "2018.11.10"]
[EventType "team-tourn"]
[EventCountry "GER"]
[SourceTitle "playchess.com"]
[Source "ChessBase"]
[SourceQuality "1"]
[WhiteTeam "SV Hofheim"]
[BlackTeam "Zugzwang Muenchen"]
[TimeControl "40/6000+30:3000+30"]

1. e4 {[%emt 0:00:00]} e6 {[%emt 0:00:00]} 2. d4 {[%emt 0:00:05]} d5 {[%emt 0:00:00]} 3. Nd2 {[%emt 0:00:05]} Be7 {[%emt 0:00:11]} 4. e5 {[%emt 0:00:17]} c5 {[%emt 0:00:28]} 5. c3 {[%emt 0:00:05]} cxd4 {[%emt 0:02:07]} 6. cxd4 {[%emt 0:00:03]} Qb6 {[%emt 0:00:31]} 7. Ndf3 {[%emt 0:00:25]} Bb4+ {[%emt 0:06:04]} 8. Bd2 {[%emt 0:00:05]} Nc6 {[%emt 0:00:16]} 9. Bc3 {[%emt 0:00:07]} f6 {[%emt 0:09:11]} 10. Bd3 {[%emt 0:22:51]} fxe5 {[%emt 0:03:58]} 11. Nxe5 {[%emt 0:10:53]} Qxd4 {[%emt 0:17:37]} 12. Qh5+ {[%emt 0:26:14]} g6 {[%emt 0:06:22]} 13. Bxg6+ {[%emt 0:02:53]} hxg6 {[%emt 0:00:17]} 14. Qxg6+ {[%emt 0:00:10]} Kd8 {[%emt 0:00:39]} 15. Nf7+ {[%emt 0:03:24]} Ke7 {[%emt 0:06:00]} 16. Ne2 {[%emt 0:01:25]} Bxc3+ {[%emt 0:01:59]} 17. bxc3 {[%emt 0:00:12]} Qh4 {[%emt 0:07:25]} 18. Nxh8 {[%emt 0:00:49]} Qxh8 {[%emt 0:00:08]} 19. O-O {[%emt 0:02:04]} Nf6 {[%emt 0:01:39]} 20. Nf4 {[%emt 0:06:58]} Bd7 {[%emt 0:05:21]} 21. Rfe1 {[%emt 0:07:37]} Re8 {[%emt 0:05:37]} 22. c4 {[%emt 0:04:41]} dxc4 {[%emt 0:07:02]} 23. Rad1 {[%emt 0:02:16]} Bc8 {[%emt 0:06:01]} 24. Qc2 {[%emt 0:03:59]} Qh6 {[%emt 0:04:04]} 25. Qxc4 {[%emt 0:01:24]} e5 {[%emt 0:02:40]} 26. Nd3 {[%emt 0:01:05]} Qh5 {[%emt 0:02:45]} 27. f4 {[%emt 0:05:02]} e4 {[%emt 0:03:06]} 28. Nc5 {[%emt 0:02:06]} Kf8 {[%emt 0:02:57]} 29. Rd6 {[%emt 0:03:57]} Qf5 {[%emt 0:01:10]} 30. h3 {[%emt 0:02:09]} Kg7 {[%emt 0:01:29]} 31. Qc3 {[%emt 0:01:28]} Qxf4 {[%emt 0:03:22]} 32. Rxe4 {[%emt 0:00:22]} Qxd6 {[%emt 0:00:52]} 33. Rxe8 {[%emt 0:00:02]} Nd4 {[%emt 0:00:51]} 34. Re1 {[%emt 0:01:05]} Bf5 {[%emt 0:04:08]} 35. Nxb7 {[%emt 0:00:35]} Qd5 {[%emt 0:00:34]} 36. Qg3+ {[%emt 0:00:30]} Kh6 {[%emt 0:00:36]} 37. Nd6 {[%emt 0:00:33]} Bg6 {[%emt 0:00:14]} 38. Qf4+ {[%emt 0:00:21]} Kg7 {[%emt 0:00:46]} 39. Re7+ {[%emt 0:00:17]} 1-0

[Event "BL 2018-19"]
[Site "Berlin"]
[Date "2019.04.08"]
[Round "15.3"]
[White "Hertneck, Gerald"]
[Black "Perske, Thore"]
[Result "1/2-1/2"]
[ECO "A49"]
[WhiteElo "2492"]
[BlackElo "2448"]
[Annotator "ChessBase"]
[PlyCount "81"]
[EventDate "2018.11.10"]
[EventType "team-tourn"]
[EventCountry "GER"]
[SourceTitle "playchess.com"]
[Source "ChessBase"]
[SourceQuality "1"]
[WhiteTeam "Zugzwang Muenchen"]
[BlackTeam "SV Hofheim"]
[TimeControl "40/6000+30:3000+30"]

1. d4 {[%emt 0:00:00]} Nf6 {[%emt 0:00:16]} 2. Nf3 {[%emt 0:00:00]} g6 {[%emt 0:00:09]} 3. g3 {[%emt 0:00:00]} Bg7 {[%emt 0:01:51]} 4. Bg2 {[%emt 0:00:00]} O-O {[%emt 0:00:32]} 5. O-O {[%emt 0:00:00]} d6 {[%emt 0:00:14]} 6. a4 {[%emt 0:00:06]} Nc6 {[%emt 0:07:11]} 7. Na3 {[%emt 0:10:17]} e5 {[%emt 0:05:14]} 8. d5 {[%emt 0:06:45]} Nb4 {[%emt 0:01:43]} 9. c4 {[%emt 0:01:16]} a5 {[%emt 0:03:22]} 10. Ne1 {[%emt 0:05:08]} Nd7 {[%emt 0:04:25]} 11. Nd3 {[%emt 0:07:02]} Nxd3 {[%emt 0:04:09]} 12. exd3 {[%emt 0:00:39]} Nc5 {[%emt 0:01:11]} 13. Nb5 {[%emt 0:00:05]} Bd7 {[%emt 0:08:13]} 14. Ra3 {[%emt 0:04:50]} f5 {[%emt 0:04:50]} 15. Be3 {[%emt 0:02:31]} Na6 {[%emt 0:12:30]} 16. Qd2 {[%emt 0:00:41]} f4 {[%emt 0:09:32]} 17. gxf4 {[%emt 0:01:08]} exf4 {[%emt 0:00:05]} 18. Bxf4 {[%emt 0:00:06]} Qf6 {[%emt 0:05:07]} 19. Bg3 {[%emt 0:06:30]} Qxb2 {[%emt 0:00:16]} 20. Qxb2 {[%emt 0:00:05]} Bxb2 {[%emt 0:00:03]} 21. Rb3 {[%emt 0:00:06]} Be5 {[%emt 0:17:28]} 22. Bxe5 {[%emt 0:04:00]} dxe5 {[%emt 0:00:02]} 23. Nxc7 {[%emt 0:00:14]} Nc5 {[%emt 0:00:04]} 24. Nxa8 {[%emt 0:17:57]} Nxb3 {[%emt 0:00:06]} 25. Nb6 {[%emt 0:00:06]} Nc5 {[%emt 0:08:38]} 26. Re1 {[%emt 0:03:33]} Bf5 {[%emt 0:02:53]} 27. d6 {[%emt 0:04:09]} Nxd3 {[%emt 0:02:39]} 28. Re3 {[%emt 0:00:12]} Rd8 {[%emt 0:01:44]} 29. d7 {[%emt 0:17:40]} Nc5 {[%emt 0:00:49]} 30. Rxe5 {[%emt 0:00:31]} Nxd7 {[%emt 0:00:05]} 31. Nxd7 {[%emt 0:02:56]} Rxd7 {[%emt 0:00:05]} 32. h3 {[%emt 0:00:08]} b6 {[%emt 0:05:01]} 33. c5 {[%emt 0:00:04]} bxc5 {[%emt 0:00:26]} 34. Rxc5 {[%emt 0:00:04]} Ra7 {[%emt 0:00:49]} 35. h4 {[%emt 0:01:32]} Bd7 {[%emt 0:01:19]} 36. Bc6 {[%emt 0:00:14]} Bxc6 {[%emt 0:00:12]} 37. Rxc6 {[%emt 0:00:06]} Rf7 {[%emt 0:00:03]} 38. h5 {[%emt 0:04:15]} Rf4 {[%emt 0:01:26]} 39. hxg6 {[%emt 0:00:06]} hxg6 {[%emt 0:00:08]} 40. Rxg6+ {[%emt 0:00:08]} Kf7 {[%emt 0:00:06]} 41. Ra6 {[%emt 0:50:04]} 1/2-1/2

[Event "BL 2018-19"]
[Site "Berlin"]
[Date "2019.04.07"]
[Round "15.4"]
[White "Sprenger, Jan Michael"]
[Black "Ftacnik, Lubomir"]
[Result "1-0"]
[ECO "B90"]
[WhiteElo "2490"]
[BlackElo "2512"]
[Annotator "ChessBase"]
[PlyCount "55"]
[EventDate "2018.11.10"]
[EventType "team-tourn"]
[EventCountry "GER"]
[SourceTitle "playchess.com"]
[Source "ChessBase"]
[SourceQuality "1"]
[WhiteTeam "SF Berlin"]
[BlackTeam "Hamburg SK"]
[TimeControl "40/6000+30:3000+30"]

1. e4 {[%emt 0:00:00]} c5 {[%emt 0:00:00]} 2. Nf3 {[%emt 0:00:00]} d6 {[%emt 0:00:00]} 3. d4 {[%emt 0:00:00]} cxd4 {[%emt 0:00:00]} 4. Nxd4 {[%emt 0:00:00]} Nf6 {[%emt 0:00:08]} 5. Nc3 {[%emt 0:00:00]} a6 {[%emt 0:00:15]} 6. h3 {[%emt 0:00:07]} e5 {[%emt 0:00:26]} 7. Nde2 {[%emt 0:00:06]} Be7 {[%emt 0:02:34]} 8. g4 {[%emt 0:00:51]} h6 {[%emt 0:04:22]} 9. Bg2 {[%emt 0:01:46]} Nbd7 {[%emt 0:02:45]} 10. O-O {[%emt 0:08:44]} b5 {[%emt 0:01:35]} 11. Ng3 {[%emt 0:03:36]} g6 {[%emt 0:02:37]} 12. f4 {[%emt 0:03:09]} Bb7 {[%emt 0:14:17]} 13. g5 {[%emt 0:19:03]} hxg5 {[%emt 0:14:52]} 14. fxg5 {[%emt 0:00:08]} Nh5 {[%emt 0:02:26]} 15. Nxh5 {[%emt 0:09:34]} Rxh5 {[%emt 0:00:08]} 16. Qf3 {[%emt 0:00:09]} Rh7 {[%emt 0:00:09]} 17. h4 {[%emt 0:01:54]} Rc8 {[%emt 0:15:30]} 18. Rf2 {[%emt 0:03:14]} b4 {[%emt 0:12:23]} 19. Nd5 {[%emt 0:00:19]} Bxd5 {[%emt 0:02:00]} 20. exd5 {[%emt 0:00:04]} Qa5 {[%emt 0:08:03]} 21. h5 {[%emt 0:31:06]} gxh5 {[%emt 0:12:05]} 22. Bh3 {[%emt 0:02:10]} Rc7 {[%emt 0:01:05]} 23. Be6 {[%emt 0:06:20]} fxe6 {[%emt 0:09:02]} 24. dxe6 {[%emt 0:00:09]} Nf8 {[%emt 0:01:23]} 25. Qa8+ {[%emt 0:00:41]} Bd8 {[%emt 0:00:01]} 26. Rxf8+ {[%emt 0:00:09]} Kxf8 {[%emt 0:00:02]} 27. Qxd8+ {[%emt 0:00:08]} Kg7 {[%emt 0:00:03]} 28. Be3 {[%emt 0:04:47]} 1-0

[Event "BL 2018-19"]
[Site "Berlin"]
[Date "2019.04.07"]
[Round "15.4"]
[White "Ginsburg, Gennadi"]
[Black "Zysk, Robert"]
[Result "1/2-1/2"]
[ECO "B06"]
[WhiteElo "2418"]
[BlackElo "2404"]
[Annotator "NA RC"]
[PlyCount "119"]
[EventDate "2018.11.10"]
[EventType "team-tourn"]
[EventCountry "GER"]
[SourceTitle "playchess.com"]
[Source "ChessBase"]
[SourceQuality "1"]
[WhiteTeam "SV Hofheim"]
[BlackTeam "Zugzwang Muenchen"]
[TimeControl "40/6000+30:3000+30"]

1. e4 {[%emt 0:00:20]} g6 {[%emt 0:00:39]} 2. d4 {[%emt 0:00:23]} Bg7 {[%emt 0:00:06]} 3. Nc3 {[%emt 0:01:14]} d6 {[%emt 0:00:05]} 4. h3 {[%emt 0:01:29]} a6 {[%emt 0:03:05]} 5. a4 {[%emt 0:07:29]} b6 {[%emt 0:02:22] B06: Modern Defence} 6. Nf3 {[%emt 0:01:33] LiveBook: 27 Games} (6. g4 Bb7 7. Bg2 e6 8. Nge2 Nd7 9. Be3 h5 10. Rg1 hxg4 11. hxg4 c5 12. Qd2 Ne7 13. f4 cxd4 14. Nxd4 {½-½ (32) Chigaev,M (2542)-Dubov,D (2666) Kolomna 2016}) 6... Bb7 {[%emt 0:01:56]} 7. Bc4 {[%emt 0:00:51]} e6 {[%emt 0:00:11]} 8. Bg5 {[%emt 0:03:25]} Ne7 {[%emt 0:00:51]} 9. Qd2 {[%emt 0:01:23]} h6 {[%emt 0:00:54]} 10. Bf4 {[%emt 0:10:58]} Nd7 {[%emt 0:01:01]} 11. O-O {[%emt 0:02:01]} Nf6 {[%emt 0:14:54]} 12. Rfe1 {[%emt 0:02:49]} g5 {[%emt 0:01:40]} 13. Bh2 {[%emt 0:01:41]} g4 {[%emt 0:05:24]} 14. hxg4 {[%emt 0:15:28]} Nxg4 {[%emt 0:00:19]} 15. Nd1 $146 {[%emt 0:03:30]} ({Predecessor:} 15. Bg3) 15... Ng6 {[%emt 0:05:37]} 16. d5 $1 {[%emt 0:08:25]} e5 {[%emt 0:06:25]} 17. Ne3 {[%emt 0:03:55]} Nxe3 {[%emt 0:15:00]} 18. Qxe3 {[%emt 0:00:20]} h5 {[%emt 0:01:43]} 19. a5 {[%emt 0:00:14]} b5 {[%emt 0:00:34]} 20. Bf1 {[%emt 0:00:29]} Bh6 {[%emt 0:06:38]} 21. Qb3 {[%emt 0:00:30]} Bc8 {[%emt 0:02:05]} 22. c4 {[%emt 0:01:14]} bxc4 {[%emt 0:02:07]} 23. Qxc4 {[%emt 0:00:07]} O-O {[%emt 0:04:15]} 24. Ra3 {[%emt 0:01:01]} f6 {[%emt 0:05:55]} 25. Re2 {[%emt 0:06:04]} Rf7 {[%emt 0:03:08]} 26. Rc2 {[%emt 0:00:47]} Rg7 {[%emt 0:02:04]} 27. Rb3 {[%emt 0:03:34]} Bg4 {[%emt 0:04:10]} 28. Rcc3 {[%emt 0:06:31]} Bf4 {[%emt 0:15:29]} (28... Qc8 $11 {remains equal.}) 29. Rb7 {[%emt 0:04:09]} Bxf3 {[%emt 0:00:34]} 30. Rxf3 {[%emt 0:00:54]} Qc8 {[%emt 0:00:46]} 31. Qc6 {[%emt 0:02:40]} Rb8 {[%emt 0:02:47]} 32. Rxb8 {[%emt 0:04:58]} Qxb8 {[%emt 0:00:02]} 33. b3 {[%emt 0:00:32]} Qb4 {[%emt 0:01:37]} 34. Bxf4 {[%emt 0:08:44]} Nxf4 {[%emt 0:00:21]} 35. Rxf4 {[%emt 0:05:01]} exf4 {[%emt 0:00:05]} 36. Qe8+ {[%emt 0:01:41]} Kh7 {[%emt 0:00:06]} 37. e5 {[%emt 0:00:28]} Qe4 {[%emt 0:01:56]} 38. Qxh5+ {[%emt 0:00:26]} Kg8 {[%emt 0:00:03]} 39. Qe8+ {[%emt 0:01:09]} Kh7 {[%emt 0:00:05]} 40. Qh5+ {[%emt 0:00:27]} Kg8 {[%emt 0:00:05]} 41. exf6 {[%emt 0:04:29]} Rg6 {[%emt 0:05:16]} 42. f7+ {[%emt 0:15:37]} Kxf7 {[%emt 0:19:15]} 43. Qh7+ {[%emt 0:01:02]} Kf6 {[%emt 0:02:01]} 44. Qxc7 {[%emt 0:00:49]} Qxd5 {[%emt 0:03:02]} 45. Qd8+ {[%emt 0:00:50]} Ke5 {[%emt 0:06:50]} 46. Qe8+ {[%emt 0:06:29]} Qe6 {[%emt 0:03:00]} 47. Qxe6+ {[%emt 0:03:27]} Rxe6 {[%emt 0:00:43]} 48. Bxa6 {[%emt 0:00:07]} Kd4 {[%emt 0:06:06]} ({Black should try} 48... d5 $17 49. Bf1 Kd6) 49. Bb7 {[%emt 0:06:42]} Kc5 {[%emt 0:01:45]} 50. a6 {[%emt 0:05:04]} Kb6 {[%emt 0:00:23]} 51. b4 {[%emt 0:02:07]} Re5 {[%emt 0:00:55]} 52. g4 {[%emt 0:01:52]} fxg3 {[%emt 0:00:52]} 53. fxg3 {[%emt 0:00:07]} d5 {[%emt 0:00:19]} 54. Kf2 {[%emt 0:02:56]} d4 {[%emt 0:01:33]} 55. g4 {[%emt 0:03:14]} d3 {[%emt 0:00:43]} 56. b5 $19 {[%emt 0:01:07]} d2 {[%emt 0:03:57]} 57. Bf3 {[%emt 0:00:04]} Rxb5 {[%emt 0:00:55]} 58. Ke2 {[%emt 0:01:33]} Rb3 {[%emt 0:01:22]} 59. Bb7 {[%emt 0:00:36]} Rg3 {[%emt 0:00:23]} 60. Kxd2 {[%emt 0:00:52]} 1/2-1/2

[Event "BL 2018-19"]
[Site "Berlin"]
[Date "2019.04.07"]
[Round "15.5"]
[White "Heinemann, Thies"]
[Black "Schreiner, Peter"]
[Result "1/2-1/2"]
[ECO "C68"]
[WhiteElo "2521"]
[BlackElo "2480"]
[Annotator "ChessBase"]
[PlyCount "53"]
[EventDate "2018.11.10"]
[EventType "team-tourn"]
[EventCountry "GER"]
[SourceTitle "playchess.com"]
[Source "ChessBase"]
[SourceQuality "1"]
[WhiteTeam "Hamburg SK"]
[BlackTeam "SF Berlin"]
[TimeControl "40/6000+30:3000+30"]

1. e4 {[%emt 0:00:00]} e5 {[%emt 0:00:00]} 2. Nf3 {[%emt 0:00:00]} Nc6 {[%emt 0:00:00]} 3. Bb5 {[%emt 0:00:00]} a6 {[%emt 0:00:00]} 4. Bxc6 {[%emt 0:00:00]} dxc6 {[%emt 0:00:00]} 5. O-O {[%emt 0:00:02]} Bd6 {[%emt 0:00:00]} 6. d4 {[%emt 0:00:50]} exd4 {[%emt 0:00:04]} 7. Qxd4 {[%emt 0:00:13]} f6 {[%emt 0:00:06]} 8. Be3 {[%emt 0:00:51]} Ne7 {[%emt 0:00:15]} 9. Nbd2 {[%emt 0:01:22]} Be6 {[%emt 0:00:09]} 10. Rfd1 {[%emt 0:04:19]} Ng6 {[%emt 0:08:11]} 11. Nc4 {[%emt 0:05:36]} Bxc4 {[%emt 0:01:31]} 12. Qxc4 {[%emt 0:00:09]} Qe7 {[%emt 0:02:05]} 13. Bd4 {[%emt 0:20:11]} O-O-O {[%emt 0:07:56]} 14. Re1 {[%emt 0:02:02]} Rd7 {[%emt 0:26:12]} 15. Bc3 {[%emt 0:05:58]} Ne5 {[%emt 0:04:33]} 16. Nxe5 {[%emt 0:20:40]} Bxe5 {[%emt 0:00:13]} 17. Re2 {[%emt 0:03:56]} h5 {[%emt 0:09:46]} 18. Rae1 {[%emt 0:09:46]} h4 {[%emt 0:11:09]} 19. Re3 {[%emt 0:02:17]} Rhd8 {[%emt 0:05:30]} 20. a3 {[%emt 0:12:08]} g5 {[%emt 0:05:59]} 21. h3 {[%emt 0:05:28]} Rd1 {[%emt 0:08:35]} 22. Kf1 {[%emt 0:05:42]} Rxe1+ {[%emt 0:02:50]} 23. Kxe1 {[%emt 0:03:07]} Bf4 {[%emt 0:03:12]} 24. Bb4 {[%emt 0:01:47]} Qe5 {[%emt 0:06:45]} 25. Bc3 {[%emt 0:00:26]} Qe7 {[%emt 0:00:41]} 26. Bb4 {[%emt 0:00:55]} Qe5 {[%emt 0:02:11]} 27. Bc3 {[%emt 0:00:08]} 1/2-1/2